bitfinex-derivatives/quotes_ETHF0:USTF0_20250612
["timestamp","ask_amount","ask_price","bid_price","bid_amount"]
[1749715130674,3.2078,2742.8,2742.4,1.8265]
[1749715130885,0.72918,2742.6,2742.5,17.85]
[1749715131882,0.72918,2742.6,2742.4,2.55573]
[1749715132082,0.72918,2742.6,2742.4,20.40573]
[1749715132776,0.72918,2742.6,2742.4,2.55573]
[1749715132982,0.72918,2742.6,2742.4,20.40473]
[1749715133289,0.7292,2742.6,2742.4,20.40472]
[1749715133581,0.72917,2742.7,2742.5,0.72919]
[1749715133981,3.2078,2742.8,2742.5,17.848]
[1749715134278,0.72918,2742.6,2742.5,17.848]
[1749715134877,0.72918,2742.6,2742.5,18.57721]
[1749715135183,0.72918,2742.6,2742.5,17.848]
[1749715135380,0.2916,2742.7,2742.3,17.847]
[1749715135582,0.72923,2742.4,2742.3,17.847]
[1749715135881,0.72923,2742.4,2742.3,18.57626]
[1749715136680,1.27613,2742.5,2742.2,17.846]
[1749715136882,1.27613,2742.5,2742.3,0.72925]
[1749715137788,1.27611,2742.5,2742.4,17.845]
[1749715137983,3.14041,2742.5,2742.4,17.845]
[1749715138479,1.27611,2742.5,2742.4,17.845]
[1749715138680,0.5469,2742.5,2742.2,0.72927]
[1749715138882,0.72925,2742.4,2742.3,17.845]
[1749715140788,0.5469,2742.5,2742.0,0.72932]
[1749715140978,0.72934,2742.0,2741.9,6.7877]
[1749715141289,0.0620172,2742.2,2741.9,22.836]
[1749715141587,0.72931,2742.1,2741.9,23.56536]
[1749715141880,0.72931,2742.1,2742.0,0.72934]
[1749715142189,0.72934,2742.0,2741.9,23.56535]
[1749715142383,0.72933,2742.1,2742.0,0.72934]
[1749715142682,0.72939,2741.8,2741.7,18.57589036]
[1749715142881,0.72939,2741.8,2741.7,17.84647036]
[1749715144290,3.93719,2741.8,2741.7,17.84647036]
[1749715144687,3.93719,2741.8,2741.7,0.00547036]
[1749715148900,3.2698172,2742.1,2742.0,0.72934]
[1749715149194,0.0620172,2742.1,2742.0,5.72434]
[1749715149394,0.7913472,2742.1,2742.0,22.832]
[1749715149789,0.0620172,2742.1,2742.0,23.56134]
[1749715149991,0.0620172,2742.1,2742.0,22.832]
[1749715150185,0.0620172,2742.1,2742.0,23.56134]
[1749715151992,0.0620172,2742.1,2742.0,28.56134]
[1749715152393,0.0620172,2742.1,2742.0,31.76914]
[1749715152583,0.2916,2742.7,2742.0,31.76914]
[1749715152584,1.02077,2742.7,2742.4,0.72923]
[1749715152786,0.2916,2742.7,2742.4,18.56323]
[1749715153091,0.2916,2742.7,2742.4,28.55823]
[1749715153697,0.2916,2742.7,2742.6,0.72918]
[1749715154999,0.2916,2742.7,2742.6,23.55618]
[1749715155999,0.2916,2742.7,2742.6,28.55618]
[1749715156892,0.2916,2742.7,2742.6,30.25938]
[1749715157292,0.2916,2742.7,2742.6,7.43238]
[1749715157502,0.2916,2742.7,2742.6,25.25438]
[1749715159597,0.3536172,2742.7,2742.6,25.25438]
[1749715160198,0.72921,2742.5,2742.4,3.2078]
[1749715160497,0.7911872,2742.7,2742.4,18.55322]
[1749715160693,0.72919,2742.6,2742.4,17.824]
[1749715160899,0.72919,2742.6,2742.4,18.55322]
[1749715161098,0.0620172,2742.7,2742.6,0.72918]
[1749715161302,0.0620172,2742.7,2742.6,5.72318]
[1749715161498,0.00547036,2743.0,2742.9,0.7291]
[1749715161801,0.00547036,2743.0,2742.9,18.5511]
[1749715164002,0.29707036,2743.0,2742.9,18.5511]
[1749715165994,0.29707036,2743.0,2742.9,0.7291]
[1749715166205,0.29707036,2743.0,2742.9,23.5401]
[1749715167299,0.29707036,2743.0,2742.9,0.7291]
[1749715167505,0.29707036,2743.0,2742.9,23.5381]
[1749715168208,0.29707036,2743.0,2742.9,0.7291]
[1749715168402,0.29707036,2743.0,2742.9,23.5371]
[1749715170009,0.29707036,2743.0,2742.9,5.7291]
[1749715170202,0.29707036,2743.0,2742.9,28.5361]
[1749715170907,0.29707036,2743.0,2742.9,28.5171]
[1749715171310,0.29707036,2743.0,2742.9,5.7291]
[1749715171513,2.455,2743.7,2743.0,1.82265]
[1749715171712,0.72887,2743.8,2743.7,0.72889]
[1749715171901,3.2078,2743.9,2743.7,18.53889]
[1749715172107,3.2078,2743.9,2743.7,17.81]
[1749715172305,0.72886,2743.8,2743.7,17.81]
[1749715173208,3.2078,2743.9,2743.7,17.81]
[1749715173413,3.2078,2743.9,2743.8,0.72886]
[1749715174803,3.2078,2743.9,2743.7,17.81]
[1749715175105,3.2078,2743.9,2743.8,0.72886]
[1749715177811,0.72892,2743.6,2743.5,3.6e-07]
[1749715178108,3.2078,2742.9,2740.8,3.2078]
[1749715178307,29.80134545,2743.6,2741.4,3.2078]
[1749715178308,3.2078,2742.1,2741.4,3.2078]
[1749715178615,1.82236,2743.6,2741.1,3.7279]
[1749715178616,1.82217,2743.8,2742.0,3.2078]
[1749715178810,5.03017,2743.5,2742.5,3.2078]
[1749715179012,0.0620172,2743.8,2742.6,22.775]
[1749715179013,0.72915,2742.7,2742.6,22.775]
[1749715179314,3.2078,2743.1,2742.6,22.775]
[1749715179508,1.7995,2743.0,2742.6,22.775]
[1749715179707,0.72916,2742.7,2742.6,22.775]
[1749715180413,0.72915,2742.7,2742.6,4.976]
[1749715181912,2.50715,2742.7,2742.6,4.976]
[1749715184418,0.72915,2742.7,2742.6,4.976]
[1749715185119,1.8825,2742.8,2742.6,4.976]
[1749715185319,0.72915,2742.7,2742.6,4.976]
[1749715185715,0.72912,2742.9,2742.6,4.976]
[1749715185921,0.00547036,2743.3,2742.8,3.2078]
[1749715186112,0.7291,2742.9,2742.8,3.2078]
[1749715186310,0.7291,2742.9,2742.8,21.0068]
[1749715186614,0.7291,2742.9,2742.8,22.775]
[1749715188627,0.72921,2742.5,2742.4,0.00547036]
[1749715189121,6.82305,2742.5,2741.5,4.976]
[1749715189429,0.72945,2741.6,2741.4,4.976]
[1749715189629,0.72944,2741.7,2741.4,4.976]
[1749715189825,0.72941,2741.8,2741.5,0.72946]
[1749715190030,0.72941,2741.8,2741.4,5.70548]
[1749715190221,0.72942,2741.7,2741.4,7.56548]
[1749715190728,0.72941,2741.8,2741.4,7.56548]
[1749715190922,0.72943,2741.7,2741.4,7.56548]
[1749715191222,0.7295,2741.4,2741.3,0.00547036]
[1749715191525,0.7295,2741.4,2741.3,4.98147036]
[1749715191922,0.7295,2741.4,2741.3,0.00547036]
[1749715192124,2.451,2741.4,2741.3,0.00547036]
[1749715193224,0.72963,2740.9,2740.8,8.1848]
[1749715194223,3.5453,2741.4,2740.8,8.1848]
[1749715194623,0.72962,2741.0,2740.8,8.1848]
[1749715194823,0.72962,2741.0,2740.9,4.977]
[1749715195027,1.7215,2741.4,2740.9,4.977]
[1749715195231,1.7215,2741.4,2740.9,5.70663]
[1749715195232,0.72955,2741.2,2740.9,5.70663]
[1749715195429,0.72955,2741.2,2740.9,6.709]
[1749715195732,0.72955,2741.2,2740.6,0.00547036]
[1749715195733,0.72968,2740.8,2740.7,4.978]
[1749715196337,2.54538,2740.8,2740.7,4.978]
[1749715197333,3.93745,2740.9,2740.7,4.978]
[1749715197530,3.2078,2740.9,2740.7,4.978]
[1749715197724,0.72966,2740.8,2740.7,4.978]
[1749715199134,3.2078,2740.9,2740.6,0.00547036]
[1749715199135,0.72968,2740.7,2740.6,0.00547036]
[1749715200836,2.59298,2740.7,2740.6,0.00547036]
[1749715201734,0.72974,2740.2,2740.1,3.2078]
[1749715201932,5.0711,2740.7,2739.1,24.59604]
[1749715202132,3.2078,2740.3,2739.5,3.2078]
[1749715202435,1.82423,2740.4,2739.8,3.2078]
[1749715202637,5.03196,2740.6,2739.9,22.771]
[1749715202942,0.72981,2740.0,2739.7,4.968]
[1749715203143,1.85187036,2740.5,2739.9,3.2078]
[1749715203940,0.00547036,2740.5,2739.9,3.2078]
[1749715204243,0.00547036,2740.5,2740.0,1.8533]
[1749715204742,0.00547036,2740.5,2740.0,1.85694353]
[1749715205438,0.72977,2740.1,2740.0,0.00364353]
[1749715205843,0.00547036,2740.5,2740.0,0.00364353]
[1749715206040,0.73514036,2740.5,2740.0,0.00364353]
[1749715206243,0.00547036,2740.5,2740.4,3.93749]
[1749715206646,3.2078,2741.4,2740.4,8.2078]
[1749715206946,0.72952,2741.1,2740.8,3.2078]
[1749715207238,0.72952,2741.1,2740.9,1.9004]
[1749715207444,0.72953,2741.0,2740.9,1.9004]
[1749715208346,0.00547036,2741.2,2740.5,1.8562]
[1749715208637,0.72964,2740.6,2740.5,1.8562]
[1749715208840,0.72971,2740.4,2740.2,5.0878]
[1749715209046,0.00547036,2741.2,2740.2,5.0878]
[1749715209236,0.72957,2740.9,2740.5,3.93745]
[1749715209443,0.72952,2741.1,2740.6,1.8514]
[1749715209748,0.00547036,2741.2,2740.6,1.8514]
[1749715209942,0.00547036,2741.2,2740.7,1.8096]
[1749715210246,0.00547036,2741.2,2740.8,1.8514]
[1749715210445,0.00547036,2741.2,2740.9,1.88]
[1749715210747,0.72952,2741.1,2740.9,1.88]
[1749715210946,0.72953,2741.0,2740.9,3.7314]
[1749715211146,0.72953,2741.0,2740.9,1.88]
[1749715211647,0.72952,2741.1,2740.9,1.88]
[1749715211841,0.72953,2741.0,2740.9,1.88]
[1749715213139,0.00547036,2741.2,2740.9,1.88]
[1749715213640,0.72952,2741.1,2740.9,1.88]
[1749715213839,0.72953,2741.0,2740.9,3.773]
[1749715214743,0.72952,2741.1,2740.9,3.773]
[1749715214944,0.72953,2741.0,2740.9,3.773]
[1749715215145,0.72951,2741.1,2740.9,3.773]
[1749715215346,0.72953,2741.0,2740.9,3.773]
[1749715215536,0.72953,2741.0,2740.9,1.88]
[1749715215740,0.72958,2740.8,2740.7,1.8096]
[1749715216336,0.00547036,2741.2,2740.7,1.8096]
[1749715216541,0.00547036,2741.2,2740.9,0.72954]
[1749715216542,0.73495036,2741.2,2740.9,0.72954]
[1749715216743,0.73495036,2741.2,2740.8,1.8007]
[1749715216744,0.72956,2740.9,2740.8,3.5521]
[1749715216952,0.72956,2740.9,2740.8,1.8007]
[1749715217742,0.72952,2741.1,2740.8,2.53027]
[1749715217947,0.00547036,2741.2,2740.9,1.8014]
[1749715218149,0.72953,2741.0,2740.9,1.8014]
[1749715218942,0.00547036,2741.2,2740.9,1.8014]
[1749715219147,0.2,2741.7,2741.6,0.72937]
[1749715219347,3.2078,2742.3,2741.9,0.72928]
[1749715219645,0.72931,2741.9,2741.7,3.606]
[1749715219849,0.72932,2741.8,2741.7,3.606]
[1749715220041,0.72932,2741.8,2741.7,1.8046]
[1749715220447,0.72931,2741.9,2741.7,1.8046]
[1749715220749,0.73475036,2742.0,2741.7,1.8046]
[1749715220945,0.72929,2741.9,2741.7,3.5847]
[1749715221250,0.72932,2741.8,2741.7,1.8046]
[1749715222549,0.72935,2741.7,2741.6,3.2078]
[1749715223550,0.72937,2741.6,2741.5,0.00547036]
[1749715224755,0.72933,2741.8,2741.5,0.73486036]
[1749715224950,0.72933,2741.8,2741.7,3.2078]
[1749715225452,0.72937,2741.6,2741.5,0.00547036]
[1749715227253,2.56817,2741.6,2741.5,0.00547036]
[1749715228550,3.66228,2741.6,2740.8,3.2078]
[1749715228756,0.72956,2740.9,2740.8,6.8181]
[1749715230256,0.72955,2741.0,2740.8,6.8181]
[1749715230454,0.72955,2741.0,2740.9,1.715]
[1749715230856,0.72956,2740.9,2740.8,6.8181]
[1749715231050,3.2078,2741.4,2740.8,6.8181]
[1749715231247,0.72951,2741.1,2740.8,7.54767]
[1749715231452,0.72949,2741.2,2740.9,2.44456]
[1749715231655,3.2078,2741.4,2740.9,2.44456]
[1749715231656,0.72951,2741.1,2740.9,1.715]
[1749715231853,3.2078,2741.7,2740.9,1.715]
[1749715232057,0.72939,2741.6,2741.3,0.72944]
[1749715232259,0.7294,2741.5,2741.4,3.6767]
[1749715232460,0.72939,2741.6,2741.4,3.6767]
[1749715232757,0.72936,2741.7,2741.5,1.7773]
[1749715232949,0.72937,2741.6,2741.5,3.6309]
[1749715235755,0.72937,2741.7,2741.5,3.6309]
[1749715235960,0.00547036,2742.0,2741.6,3.2078]
[1749715236559,0.72935,2741.7,2741.6,3.2078]
[1749715238255,0.00547036,2742.0,2741.6,3.2078]
[1749715238458,0.00547036,2742.0,2741.9,0.72929]
[1749715238760,1.8225,2743.1,2741.9,0.72929]
[1749715238761,3.2078,2742.9,2742.1,1.82306]
[1749715238960,3.2078,2742.9,2742.5,0.72912]
[1749715239263,0.2916,2742.9,2742.7,3.2078]
[1749715239653,1.02064,2742.9,2742.7,3.2078]
[1749715239853,1.02064,2742.9,2742.7,5.0694]
[1749715240054,1.82271,2742.7,2741.8,3.2078]
[1749715240259,0.72935,2741.7,2741.6,4.9782]
[1749715241158,0.7294,2741.5,2741.4,0.00547036]
[1749715242363,2.462,2741.5,2741.4,0.00547036]
[1749715243059,1.7848,2741.7,2741.4,0.00547036]
[1749715243260,0.72939,2741.6,2741.4,0.00547036]
[1749715243460,0.7294,2741.5,2741.4,0.00547036]
[1749715243661,3.21327036,2741.9,2741.4,0.00547036]
[1749715243860,0.72935,2741.7,2741.5,3.2078]
[1749715244062,0.72935,2741.7,2741.5,4.9571]
[1749715244260,0.00547036,2741.9,2741.5,4.9571]
[1749715244461,0.73477036,2741.9,2741.6,1.8621]
[1749715244661,0.73477036,2741.9,2741.7,1.8621]
[1749715244860,0.72932,2741.8,2741.7,1.8621]
[1749715247566,0.73477036,2741.9,2741.7,1.8621]
[1749715247763,0.00547036,2741.9,2741.7,1.8621]
[1749715247965,0.72932,2741.8,2741.7,1.8621]
[1749715249772,0.00547036,2741.9,2741.7,1.8621]
[1749715249959,3.2078,2741.8,2741.4,0.00547036]
[1749715250163,0.7294,2741.5,2741.4,0.00547036]
[1749715253269,2.5548,2741.5,2741.4,0.00547036]
[1749715254370,0.7294,2741.5,2741.4,0.00547036]
[1749715255265,0.72939,2741.6,2741.4,0.00547036]
[1749715255468,3.55317036,2741.9,2741.4,0.00547036]
[1749715255764,0.7294,2741.5,2741.4,0.00547036]
[1749715255969,0.7294,2741.6,2741.4,0.00547036]
[1749715256171,3.55317036,2741.9,2741.4,0.00547036]
[1749715256473,3.55317036,2741.9,2741.4,3.21327036]
[1749715256667,0.72938,2741.6,2741.4,3.21327036]
[1749715256868,0.00547036,2741.9,2741.5,1.8349]
[1749715257069,0.00547036,2741.9,2741.6,1.9008]
[1749715257371,0.73478036,2741.9,2741.6,1.9008]
[1749715257570,0.73478036,2741.9,2741.6,2.63016]
[1749715257772,0.73478036,2741.9,2741.7,1.8411]
[1749715257972,0.00547036,2741.9,2741.7,1.8411]
[1749715258272,0.73478036,2741.9,2741.7,1.8411]
[1749715259270,0.00547036,2741.9,2741.7,1.8411]
[1749715259466,0.00547036,2741.9,2741.8,0.72932]
[1749715259672,0.00547036,2741.9,2741.7,1.8411]
[1749715259872,0.00547036,2741.9,2741.7,2.57042]
[1749715260066,0.00547036,2741.9,2741.8,0.72932]
[1749715260274,0.00547036,2741.9,2741.8,3.93712]
[1749715261080,0.00547036,2741.9,2741.8,3.2078]
[1749715261578,0.00547036,2741.9,2741.8,3.93712]
[1749715261775,3.4994,2742.9,2741.9,1.82324]
[1749715261976,3.4994,2742.9,2742.7,3.2078]
[1749715261977,1.02065,2742.9,2742.7,3.2078]
[1749715262170,0.2916,2742.9,2742.8,0.72905]
[1749715262372,3.5196,2743.6,2742.8,5.3594]
[1749715262569,0.72905,2742.8,2742.7,3.2078]
[1749715263276,0.72905,2742.8,2742.5,0.00547036]
[1749715263576,0.73447036,2743.0,2742.7,3.2078]
[1749715263776,0.72903,2742.9,2742.8,3.758]
[1749715265471,0.73449036,2743.0,2742.8,3.758]
[1749715265673,0.72903,2742.9,2742.8,3.758]
[1749715265978,0.00547036,2743.0,2742.8,3.758]
[1749715266168,0.73448036,2743.0,2742.8,5.6378]
[1749715266373,0.72903,2742.9,2742.8,5.6378]
[1749715266678,0.73448036,2743.0,2742.8,5.6378]
[1749715266979,0.73449036,2743.0,2742.8,5.6378]
[1749715267273,0.00547036,2743.0,2742.8,5.6378]
[1749715267469,0.00547036,2743.0,2742.9,0.72903]
[1749715267675,0.00547036,2743.0,2742.9,2.60883]
[1749715267867,0.72886,2743.6,2743.3,0.72891]
[1749715268073,10.32464,2744.1,2742.9,6.8798]
[1749715268074,8.5028,2744.1,2743.5,3.2078]
[1749715268279,0.72883,2743.7,2743.6,1.8925]
[1749715268779,0.00547036,2743.9,2743.5,3.2078]
[1749715269080,0.72883,2743.7,2743.5,5.0502]
[1749715269377,0.72883,2743.7,2743.5,6.7974]
[1749715269581,0.00547036,2743.9,2743.5,6.7974]
[1749715270081,0.72884,2743.6,2743.5,6.7974]
[1749715270379,0.72883,2743.7,2743.5,6.7974]
[1749715270683,0.73425036,2743.9,2743.5,7.52627]
[1749715270978,0.72884,2743.6,2743.5,5.0502]
[1749715271682,0.72882,2743.7,2743.5,5.0502]
[1749715271882,0.00547036,2743.9,2743.5,6.9626]
[1749715272278,0.72884,2743.6,2743.5,5.0502]
[1749715272689,0.00547036,2743.9,2743.5,10.0502]
[1749715272889,0.00547036,2743.9,2743.8,3.2078]
[1749715273384,0.00547036,2743.9,2743.8,3.93659]
[1749715274375,0.00547036,2743.9,2743.8,8.93659]
[1749715274581,3.659,2744.8,2743.8,8.93659]
[1749715274582,0.72861,2744.5,2743.8,8.2078]
[1749715274783,0.72861,2744.5,2744.1,3.2078]
[1749715274985,6.8668,2744.8,2744.2,1.8112]
[1749715275185,0.72862,2744.5,2744.2,1.8112]
[1749715275684,0.72866,2744.3,2744.2,1.8112]
[1749715276086,0.72868,2744.2,2744.1,0.00547036]
[1749715276677,4.41037,2744.3,2744.1,0.00547036]
[1749715276884,0.00547036,2744.6,2744.2,0.72868]
[1749715277083,0.72861,2744.5,2744.2,4.41438]
[1749715277287,0.72861,2744.5,2744.2,6.17968]
[1749715278084,0.00547036,2744.6,2744.2,5.451]
[1749715278283,0.00547036,2744.6,2744.4,3.2078]
[1749715278791,0.00547036,2744.6,2744.5,0.7286]
[1749715278992,0.00547036,2744.6,2744.4,3.2078]
[1749715279480,0.00547036,2744.6,2744.4,3.93642]
[1749715279889,0.00547036,2744.6,2744.4,3.2078]
[1749715280092,0.00547036,2744.6,2744.4,3.93641]
[1749715280392,0.00547036,2744.6,2744.4,3.2078]
[1749715280592,0.73406036,2744.6,2744.4,3.2078]
[1749715280790,0.73406036,2744.6,2744.2,4.41437]
[1749715280989,0.00547036,2744.6,2744.4,3.93642]
[1749715281189,0.00547036,2744.6,2744.5,0.7286]
[1749715281794,0.00547036,2744.6,2744.4,3.93641]
[1749715282096,0.00547036,2744.6,2744.3,0.72864]
[1749715282395,0.00547036,2744.6,2744.2,0.911]
[1749715282396,0.72866,2744.3,2744.2,0.911]
[1749715284096,0.72868,2744.2,2744.1,0.00547036]
[1749715284291,2.53638,2744.2,2744.1,0.00547036]
[1749715284897,5.74418,2744.2,2744.1,0.00547036]
[1749715285189,0.72874,2744.0,2743.9,2.9155]
[1749715285589,0.72882,2743.7,2743.5,3.2078]
[1749715285797,2.53654,2743.6,2743.5,3.2078]
[1749715286300,2.53654,2743.6,2743.3,0.72891]
[1749715286301,0.72889,2743.4,2743.3,0.00547036]
[1749715286495,2.57778,2743.5,2743.3,0.00547036]
[1749715286794,3.6566,2743.5,2743.3,0.00547036]
[1749715287000,3.6566,2743.5,2743.3,0.73438036]
[1749715287192,0.7289,2743.4,2743.3,0.00547036]
[1749715287394,2.6554,2743.4,2743.3,0.00547036]
[1749715287990,2.6554,2743.4,2742.5,3.2078]
[1749715287991,0.72911,2742.6,2742.5,3.2078]
[1749715288198,0.72925,2742.1,2741.8,3.2078]
[1749715288590,1.9265,2742.0,2741.9,0.07294212]
[1749715288801,0.7294,2741.5,2741.4,3.2078]
[1749715289008,0.72939,2741.6,2741.4,3.28075542]
[1749715289504,0.7294,2741.5,2741.4,3.28075542]
[1749715289704,2.65589,2741.6,2741.4,3.28075542]
[1749715289907,0.7294,2741.5,2741.4,0.07295542]
[1749715290106,2.5002,2741.5,2741.4,0.07295542]
[1749715293312,1.7708,2741.5,2741.4,0.07295542]
[1749715293517,2.5002,2741.5,2741.4,0.07295542]
[1749715294006,0.0620172,2740.4,2740.0,3.2078]
[1749715294209,0.72978,2740.1,2739.7,3.93766]
[1749715294409,0.72976,2740.2,2740.0,2.612]
[1749715294610,3.2698172,2740.4,2740.0,2.612]
[1749715294913,3.2078,2741.1,2740.4,0.72969]
[1749715295115,3.2078,2741.1,2740.7,3.2078]
[1749715295613,3.2078,2741.1,2740.7,3.93739]
[1749715296115,3.2078,2741.1,2740.6,0.72963]
[1749715296408,3.2078,2740.7,2740.0,5.8198]
[1749715296614,0.72965,2740.6,2740.1,2.54115]
[1749715296807,1.9129,2740.6,2740.0,9.48]
[1749715297002,0.0620172,2740.4,2740.3,0.72972]
[1749715297311,0.0620172,2740.4,2740.3,3.2078]
[1749715298914,0.0620172,2740.4,2740.3,3.93752]
[1749715299411,3.21327036,2741.2,2741.0,0.72953]
[1749715299812,3.21327036,2741.2,2740.7,3.2078]
[1749715300008,0.4742,2741.1,2740.4,1.8369]
[1749715300208,2.3284,2741.1,2740.3,3.2078]
[1749715300414,0.72961,2740.7,2740.3,3.2078]
[1749715300912,0.0620172,2740.4,2740.3,3.2078]
[1749715302019,0.0620172,2740.4,2740.3,3.93752]
[1749715302313,0.0620172,2740.4,2740.3,3.2078]
[1749715302911,0.0620172,2740.4,2740.3,3.93752]
[1749715303415,0.0620172,2740.4,2740.3,8.88952]
[1749715304117,0.0620172,2740.4,2740.3,8.1598]
[1749715304721,0.7917072,2740.4,2740.3,8.1598]
[1749715305117,0.0620172,2740.4,2740.3,8.1598]
[1749715306117,0.0620172,2740.4,2740.0,8.1997]
[1749715306322,0.72977,2740.1,2740.0,2.612]
[1749715306615,3.2078,2740.2,2738.9,3.2078]
[1749715306616,1.82451,2740.0,2738.9,5.0599]
[1749715306819,3.2078,2739.9,2739.8,0.72985]
[1749715307121,0.72979,2740.1,2739.6,8.1608]
[1749715307318,0.72979,2740.1,2739.8,0.72984]
[1749715307621,3.21327036,2740.2,2739.3,3.2078]
[1749715307822,0.72981,2740.0,2739.7,0.72986]
[1749715308420,4.97357036,2740.2,2739.4,4.953]
[1749715308421,3.2078,2739.9,2739.8,0.72984]
[1749715308621,3.2078,2739.9,2739.7,0.72986]
[1749715308918,3.93763,2739.9,2739.8,4.953]
[1749715309118,3.2078,2739.9,2739.8,5.68285]
[1749715309322,3.2078,2739.9,2739.8,4.953]
[1749715310324,3.93763,2739.9,2739.8,4.953]
[1749715312122,3.2078,2739.9,2739.8,4.953]
[1749715313223,3.93763,2739.9,2739.8,4.953]
[1749715313524,3.2078,2739.9,2739.8,4.953]
[1749715313724,3.93763,2739.9,2739.8,4.953]
[1749715313923,3.2078,2739.9,2739.8,4.953]
[1749715314125,3.93763,2739.9,2739.8,4.953]
[1749715314722,3.2078,2739.9,2739.8,4.953]
[1749715315130,3.93763,2739.9,2739.8,4.953]
[1749715315327,0.72988,2739.7,2739.6,7.36884353]
[1749715315723,0.72988,2739.7,2739.6,4.95764353]
[1749715315930,0.0620172,2740.1,2739.6,35.23244353]
[1749715316125,0.0620172,2740.1,2740.0,0.7298]
[1749715316323,0.0620172,2740.1,2740.0,4.954]
[1749715316621,0.0620172,2740.1,2740.0,6.8618]
[1749715317125,0.7917872,2740.1,2740.0,6.8618]
[1749715317326,0.0620172,2740.1,2740.0,4.954]
[1749715317635,1.37699666,2740.1,2740.0,4.954]
[1749715318728,1.37699666,2740.1,2739.8,0.72983]
[1749715318926,3.93764,2739.9,2739.7,2.92]
[1749715319123,1.31497946,2739.8,2739.7,2.92]
[1749715319430,1.31497946,2739.8,2739.6,0.00364353]
[1749715319634,1.31497946,2739.7,2739.6,0.00364353]
[1749715320030,2.04485946,2739.7,2739.6,0.00364353]
[1749715320635,3.82205946,2739.7,2739.6,0.00364353]
[1749715322930,1.31497946,2739.7,2739.6,0.00364353]
[1749715323130,2.04485946,2739.7,2739.6,0.00364353]
[1749715323631,3.78885946,2739.7,2739.6,0.00364353]
[1749715325938,0.2919,2740.1,2739.6,9.94964353]
[1749715326136,0.00547036,2740.2,2740.1,0.72977]
[1749715326437,3.2078,2740.5,2740.4,0.72969]
[1749715327032,3.2078,2740.5,2740.3,2.6517]
[1749715327434,3.2078,2740.5,2740.4,1.8881]
[1749715327629,3.93747,2740.5,2740.4,1.8881]
[1749715327830,3.93747,2740.5,2739.6,3.21144353]
[1749715327831,0.72988,2739.7,2739.6,0.00364353]
[1749715328041,3.93768,2739.7,2739.6,0.00364353]
[1749715328540,3.9996972,2739.7,2739.6,0.00364353]
[1749715329244,8.9996972,2739.7,2739.6,0.00364353]
[1749715329442,10.83858,2739.7,2739.6,0.00364353]
[1749715329937,1.82489,2739.5,2737.9,25.2768]
[1749715330236,0.73024,2738.4,2737.8,4.946]
[1749715330441,3.2078,2738.5,2738.0,1.9355]
[1749715330742,3.2078,2738.5,2738.4,0.73023]
[1749715331138,3.2078,2738.5,2738.4,23.44623]
[1749715331439,0.00547036,2738.7,2738.6,0.73017]
[1749715331641,0.00547036,2738.7,2738.6,23.44517]
[1749715332144,0.00547036,2738.7,2738.2,3.21327036]
[1749715332436,0.00547036,2738.7,2738.3,22.715]
[1749715332636,3.2078,2738.6,2738.3,26.36674]
[1749715332946,0.00547036,2738.7,2738.3,26.36674]
[1749715333240,0.00547036,2738.7,2738.5,0.7302]
[1749715333436,0.48047036,2738.7,2738.4,0.73021]
[1749715334043,0.48047036,2738.7,2738.3,27.5996]
[1749715334635,0.48047036,2738.7,2738.5,0.73018]
[1749715334836,0.48047036,2738.7,2738.6,0.73017]
[1749715337036,0.48047036,2738.7,2738.6,23.44817]
[1749715337238,3.2078,2739.2,2739.1,0.73004]
[1749715337444,3.2078,2739.2,2739.1,5.67704]
[1749715338641,3.2078,2739.2,2739.1,0.73004]
[1749715338936,2.16561,2739.2,2739.1,23.44704]
[1749715339135,3.2078,2740.2,2739.2,1.82503]
[1749715339341,2.59499,2740.1,2739.7,0.72988]
[1749715339541,2.59499,2740.1,2739.8,5.67685]
[1749715339740,2.59497,2740.1,2739.9,17.77]
[1749715339938,1.8652,2740.1,2739.9,17.77]
[1749715340143,2.59498,2740.1,2739.9,17.77]
[1749715340346,0.7298,2740.0,2739.9,17.77]
[1749715340545,1.8652,2740.0,2739.9,17.77]
[1749715340847,3.2078,2740.2,2739.9,17.77]
[1749715341048,3.2078,2740.2,2740.1,0.72977]
[1749715341751,0.00547036,2740.3,2740.2,0.72975]
[1749715341944,0.00547036,2740.3,2740.2,5.67675]
[1749715343046,0.00547036,2740.3,2740.1,0.72976]
[1749715343351,0.00547036,2740.3,2740.2,23.44375]
[1749715343652,0.00547036,2740.3,2740.2,22.714]
[1749715343943,0.00547036,2740.3,2739.8,4.947]
[1749715344147,0.72983,2739.9,2739.8,4.947]
[1749715344547,1.82475,2739.7,2739.0,4.947]
[1749715344742,0.73,2739.3,2739.0,4.947]
[1749715344948,0.73004,2739.1,2739.0,4.947]
[1749715345143,1.8401,2739.2,2738.7,3.2078]
[1749715345348,1.8401,2739.0,2738.7,3.2078]
[1749715345645,0.72994,2739.5,2738.7,25.9208]
[1749715345849,0.72994,2739.5,2739.1,0.73002]
[1749715346046,0.72994,2739.5,2739.1,5.67702]
[1749715346348,3.2078,2739.6,2739.1,4.947]
[1749715346553,3.2078,2739.3,2738.8,4.947]
[1749715346748,1.8401,2739.2,2738.7,3.2078]
[1749715346945,0.73011,2738.9,2738.7,25.9208]
[1749715347150,0.73008,2739.0,2738.7,25.9208]
[1749715347550,0.73005,2739.1,2738.7,25.9208]
[1749715347755,1.885,2739.2,2738.7,25.9208]
[1749715347950,3.2078,2739.3,2738.7,27.8956]
[1749715348255,3.2078,2739.3,2738.8,0.73011]
[1749715348447,3.2078,2739.3,2738.9,0.73009]
[1749715348647,3.93781,2739.3,2738.7,27.8956]
[1749715348852,3.2078,2739.3,2738.7,27.8956]